bitfinex/quotes_ETHUSD_20251017
["timestamp","ask_amount","ask_price","bid_price","bid_amount"]
[1760682820589,0.04513153,3862.7,3862.6,2.58892973]
[1760682820992,0.04513153,3862.7,3861.4,0.001]
[1760682821323,0.04513153,3862.7,3862.6,2.58892973]
[1760682821527,0.47833153,3862.7,3862.1,2.58919967]
[1760682821720,0.562,3862.6,3861.5,2.58966165]
[1760682821922,0.2198,3861.6,3861.4,0.001]
[1760682822382,0.1288,3861.8,3861.4,0.001]
[1760682822585,0.04513634,3861.6,3861.5,2.58966722]
[1760682822819,0.04513634,3861.6,3861.4,0.001]
[1760682823187,0.04513634,3861.6,3861.5,2.58966722]
[1760682824083,0.04513634,3861.6,3861.4,0.001]
[1760682824283,0.2198,3861.9,3861.4,0.001]
[1760682824903,0.2198,3861.9,3861.5,2.58964098]
[1760682825107,0.2198,3861.9,3861.4,0.001]
[1760682825108,0.4332,3861.8,3861.4,0.001]
[1760682825601,0.4332,3861.7,3861.4,0.001]
[1760682825919,0.2198,3861.9,3861.6,2.58960016]
[1760682826122,0.40624023,3862.1,3861.4,0.001]
[1760682826321,0.2198,3861.8,3861.4,0.001]
[1760682826911,0.4332,3861.7,3861.4,0.001]
[1760682827094,0.40624023,3862.1,3861.5,2.58965198]
[1760682827297,0.40624023,3862.1,3861.7,2.58949326]
[1760682827498,0.40624023,3862.1,3861.4,0.001]
[1760682827499,0.04513806,3862.0,3861.4,0.001]
[1760682827820,0.2198,3861.5,3861.4,0.001]
[1760682828190,0.653,3861.5,3861.4,0.001]
[1760682829025,0.69814661,3861.5,3861.4,0.001]
[1760682829323,3.44014661,3861.5,3861.4,0.001]
[1760682830394,6.20209261,3861.5,3861.4,0.001]
[1760682830589,7.09009261,3861.5,3861.4,0.001]
[1760682830795,6.62118679,3861.5,3861.4,0.001]
[1760682830991,3.84649779,3861.5,3861.4,0.001]
[1760682831224,3.84549779,3861.5,3861.4,0.001]
[1760682831493,4.139719,3861.4,3861.0,0.001]
[1760682831730,2.856156,3861.4,3861.0,0.001]
[1760682831912,0.4537,3861.3,3861.0,0.001]
[1760682832111,0.4537,3861.3,3860.6,0.001]
[1760682832112,2.493399,3861.2,3860.6,0.001]
[1760682832496,16.878298,3860.9,3856.7,2.59285219]
[1760682832741,0.4537,3861.1,3856.9,2.719]
[1760682832742,0.4537,3860.8,3856.9,2.719]
[1760682832895,9.081478,3860.6,3857.2,2.719]
[1760682833094,0.4537,3860.7,3857.8,2.59215096]
[1760682833295,0.42,3860.6,3859.5,2.59100597]
[1760682833533,0.42,3860.6,3859.6,2.59093744]
[1760682833742,0.42,3860.6,3858.5,2.5916807]
[1760682834054,0.2198,3861.5,3860.7,2.59015995]
[1760682834055,0.40637017,3860.8,3860.7,2.59015995]
[1760682834399,0.1288,3860.9,3860.8,2.59013675]
[1760682835144,0.1288,3860.9,3860.5,2.59032039]
[1760682835296,0.1288,3860.9,3860.3,0.1288]
[1760682835501,0.1288,3860.9,3860.8,2.59013675]
[1760682837852,0.40630959,3861.2,3861.1,2.58993551]
[1760682838033,0.1288,3861.2,3861.1,2.58993551]
[1760682838237,0.0451494,3861.3,3861.2,2.58986843]
[1760682839055,0.0451494,3861.3,3858.2,2.59186761]
[1760682839267,0.0451494,3861.3,3859.8,2.59080781]
[1760682839437,0.0451494,3861.3,3859.7,0.25909041]
[1760682839639,0.0451494,3861.3,3860.5,2.59032823]
[1760682839855,0.0451494,3861.3,3860.6,2.59026062]
[1760682840048,0.0451494,3861.3,3860.4,2.5904015]
[1760682840049,0.0451494,3861.3,3859.3,1.728]
[1760682840278,0.0451494,3861.3,3859.5,1.728]
[1760682840492,0.0451494,3861.3,3861.2,2.58986843]
[1760682840771,0.0451494,3861.3,3861.2,3.00805552]
[1760682841475,0.042,3862.7,3861.2,0.41818709]
[1760682841675,0.042,3862.7,3859.4,2.59107241]
[1760682841888,0.4703,3862.6,3861.2,2.58986843]
[1760682842096,0.4703,3862.6,3862.0,2.58932881]
[1760682842586,0.40616204,3862.5,3860.7,1.728]
[1760682842794,0.45129678,3862.5,3861.6,2.58959624]
[1760682842947,0.2334,3861.7,3859.6,1.728]
[1760682843255,0.2334,3861.7,3857.6,1.167]
[1760682843256,0.45129678,3862.5,3861.1,1.728]
[1760682843454,0.45129678,3862.5,3861.8,2.58942615]
[1760682843760,0.45129678,3862.5,3861.3,2.58980136]
[1760682843961,0.45129678,3862.5,3860.1,1.728]
[1760682844168,0.4703,3862.4,3860.1,1.728]
[1760682844375,0.4703,3862.4,3861.2,2.58980584]
[1760682844579,0.002,3861.7,3861.3,2.58979452]
[1760682844789,0.002,3861.7,3861.2,2.58986138]
[1760682844990,0.002,3861.7,3860.4,2.738]
[1760682845183,0.002,3861.7,3861.1,2.58990332]
[1760682845383,0.002,3861.7,3860.6,2.59020485]
[1760682845590,7.500186,3861.5,3858.3,2.719]
[1760682845892,0.4703,3861.4,3860.0,2.59060974]
[1760682846096,0.4703,3861.4,3860.0,2.59063716]
[1760682846269,0.4703,3861.4,3860.1,2.59056554]
[1760682846469,0.4703,3861.3,3859.2,2.461]
[1760682846795,1.639,3861.6,3859.2,2.461]
[1760682846796,0.4703,3861.2,3859.2,2.461]
[1760682847093,0.40634709,3861.0,3859.4,2.59107633]
[1760682847296,0.40634709,3861.0,3860.4,2.59035088]
[1760682847492,0.40634709,3861.0,3859.3,0.4189]
[1760682847910,4.120755,3860.9,3859.4,2.59104853]
[1760682848068,0.4703,3860.9,3859.7,2.59081477]
[1760682848492,0.4703,3860.9,3858.6,2.5916123]
[1760682848493,0.04515432,3860.6,3858.6,2.5916123]
[1760682848699,0.04515432,3860.6,3857.5,2.59234629]
[1760682848700,2.736,3860.5,3857.5,2.59234629]
[1760682848897,10.327336,3860.4,3857.6,2.41692285]
[1760682849088,0.1288,3859.4,3858.8,2.72025293]
[1760682849277,0.4703,3860.4,3857.7,2.83391045]
[1760682849278,2.737,3859.6,3857.7,0.24169229]
[1760682849464,0.4703,3859.5,3857.1,0.02692621]
[1760682849774,0.04516389,3859.2,3857.1,0.001]
[1760682850113,0.04516389,3859.2,3857.7,2.59216289]
[1760682850268,0.04516389,3859.2,3858.9,2.59140622]
[1760682850624,0.04516389,3859.2,3858.6,2.59160391]
[1760682850625,0.4703,3859.1,3856.1,16.23575907]
[1760682850910,0.2334,3859.0,3857.0,2.59266996]
[1760682851067,0.2334,3859.0,3857.2,0.259367]
[1760682851266,0.04516963,3858.8,3858.7,2.59154637]
[1760682851466,2.739,3859.3,3857.7,1.728]
[1760682851668,2.739,3859.3,3859.2,2.59121061]
[1760682852067,0.04516267,3859.6,3859.5,2.59100919]
[1760682852476,0.04516267,3859.6,3859.0,2.59134293]
[1760682852477,2.738,3860.3,3860.2,2.59053935]
[1760682852679,0.04515816,3860.5,3860.3,2.59044978]
[1760682853000,0.40640742,3860.7,3860.5,2.59027105]
[1760682853164,0.40640742,3860.7,3858.7,1.728]
[1760682853165,0.40640742,3860.7,3858.6,2.3616]
[1760682853371,0.40640742,3860.7,3860.1,2.59059695]
[1760682853571,0.40640742,3860.7,3858.8,2.59147921]
[1760682853876,0.40640742,3860.7,3859.1,2.738]
[1760682854083,0.40640742,3860.7,3858.7,1.63100261]
[1760682854084,0.40640742,3860.7,3859.5,2.59100564]
[1760682854278,0.40640742,3860.7,3858.8,1.728]
[1760682854484,0.40640742,3860.7,3858.9,0.4466]
[1760682854679,0.40640742,3860.7,3860.0,2.59062071]
[1760682854984,0.40640742,3860.7,3859.1,2.59127775]
[1760682855194,0.40640742,3860.7,3858.9,0.4466]
[1760682855546,0.4703,3860.6,3859.0,2.5913449]
[1760682855667,2.03087,3860.5,3859.1,2.59127775]
[1760682855872,0.45157543,3860.3,3859.4,2.59107343]
[1760682856178,0.45157543,3860.3,3859.2,2.59119684]
[1760682856402,0.45157543,3860.3,3857.3,2.59247355]
[1760682856403,0.2334,3859.3,3857.4,2.59241976]
[1760682856571,0.2334,3859.3,3857.5,2.99824198]
[1760682856775,3.2093,3859.7,3857.5,2.99824198]
[1760682856776,3.2093,3859.7,3859.0,2.59133846]
[1760682856987,2.739,3859.7,3858.9,2.59140854]
[1760682857182,2.739,3859.7,3859.2,2.59119122]
[1760682857682,0.4703,3859.6,3858.7,2.59148688]
[1760682857999,0.4703,3859.6,3858.8,2.59147284]
[1760682858491,0.4703,3859.6,3857.7,4.32018298]
[1760682858692,2.739,3859.7,3857.9,2.59208377]
[1760682858903,0.2334,3859.8,3859.2,2.59117917]
[1760682859099,0.2334,3860.0,3859.2,2.59117917]
[1760682859406,0.1288,3859.7,3859.6,2.59094023]
[1760682859580,0.1288,3859.7,3859.5,2.59095098]
[1760682859780,0.1288,3859.7,3859.1,0.1288]
[1760682860205,0.51546197,3859.9,3859.3,2.59112951]
[1760682860407,0.04516197,3859.9,3858.0,4.465]
[1760682860608,0.04516197,3859.9,3859.5,2.59095454]
[1760682860818,0.04516197,3859.9,3859.1,2.59123662]
[1760682860982,0.04516197,3859.9,3858.2,2.59188222]
[1760682861182,0.04516197,3859.9,3858.4,2.59174787]
[1760682861419,0.04516197,3859.9,3859.7,2.59087027]
[1760682861789,0.04516197,3859.9,3859.8,2.59080781]
[1760682862309,0.04516197,3859.9,3859.3,2.59108272]
[1760682862478,0.04516197,3859.9,3859.3,2.59112972]
[1760682862479,0.26566197,3859.9,3859.3,2.59112972]
[1760682862678,0.26566197,3859.9,3859.6,0.001]
[1760682862882,0.4503,3859.8,3859.6,0.001]
[1760682863406,0.6721116,3859.9,3859.6,0.001]
[1760682863726,0.4503,3859.8,3859.6,0.001]
[1760682864176,0.4503,3859.7,3859.6,0.001]
[1760682864375,0.6721116,3859.9,3859.6,0.001]
[1760682864581,0.62694963,3859.9,3859.6,0.001]
[1760682864921,0.4503,3859.8,3859.6,0.001]
[1760682865373,0.4503,3859.7,3859.6,0.001]
[1760682866301,0.62694963,3859.9,3859.6,0.001]
[1760682866843,0.4503,3859.8,3859.6,0.001]
[1760682867889,0.49546719,3859.8,3859.6,0.001]
[1760682869028,0.04516719,3859.8,3859.6,0.001]
[1760682869401,0.4503,3859.7,3859.6,0.001]
[1760682869841,0.04516719,3859.8,3859.6,0.001]
[1760682870399,0.002,3861.7,3859.6,0.001]
[1760682870400,0.4503,3861.4,3859.6,0.001]
[1760682870604,0.002,3861.7,3861.0,2.58993591]
[1760682870827,0.002,3861.7,3860.2,2.719]
[1760682870999,0.002,3861.7,3861.4,2.58973429]
[1760682871000,0.04514557,3861.5,3861.4,2.58973429]
[1760682871529,0.002,3861.7,3861.6,2.58960016]
[1760682871908,0.002,3861.7,3861.6,2.61549616]
[1760682872236,0.002,3861.7,3861.6,5.8291165]
[1760682872444,0.002,3861.7,3861.6,7.5571165]
[1760682872626,0.002,3862.4,3862.0,5.30833195]
[1760682872627,1e-08,3862.1,3862.0,5.30833195]
[1760682872837,1e-08,3862.1,3862.0,31.13745842]
[1760682873154,1e-08,3862.1,3862.0,24.02484442]
[1760682873309,1e-08,3862.1,3862.0,26.14739168]
[1760682873506,1e-08,3862.1,3862.0,28.08071968]
[1760682873720,1e-08,3862.1,3862.0,7.45108821]
[1760682873902,1e-08,3862.1,3862.0,4.31733195]
[1760682874600,1e-08,3862.1,3861.6,0.52051634]
[1760682874915,1e-08,3862.1,3861.8,2.5894034]
[1760682875245,1e-08,3862.1,3860.7,2.73]
[1760682875546,1e-08,3862.1,3861.7,2.58946705]
[1760682875714,1e-08,3862.1,3860.8,0.02590136]
[1760682876039,1e-08,3862.1,3861.7,2.58953059]
[1760682876338,1e-08,3862.1,3861.0,2.59000259]
[1760682876339,1e-08,3862.1,3861.8,2.58945252]
[1760682876541,1e-08,3862.1,3861.6,2.58953659]
[1760682876716,1e-08,3862.1,3860.9,0.27559014]
[1760682876903,1e-08,3862.1,3861.1,2.58993551]
[1760682877104,1e-08,3862.1,3861.8,2.5894285]
[1760682877300,1e-08,3862.1,3861.7,2.5895297]
[1760682877505,1e-08,3862.1,3861.8,2.5894503]
[1760682877707,1e-08,3862.1,3861.2,0.28914263]
[1760682877902,1e-08,3862.1,3860.8,2.727]
[1760682878115,1e-08,3862.1,3860.3,2.59040732]
[1760682878319,1e-08,3862.1,3860.5,4.601838]
[1760682878523,1e-08,3862.1,3861.9,2.58935539]
[1760682878752,1e-08,3862.1,3861.3,2.5897632]
[1760682878952,1e-08,3862.1,3861.8,2.58946391]
[1760682879125,1e-08,3862.1,3861.4,0.25897632]
[1760682879451,1e-08,3862.1,3862.0,2.58933195]
[1760682880318,1e-08,3862.1,3861.4,0.25897632]
[1760682880522,1e-08,3862.1,3862.0,2.71813195]
[1760682880922,1e-08,3862.1,3862.0,0.1288]
[1760682882356,0.0451373,3861.9,3861.2,0.1288]
[1760682882535,0.2205,3861.3,3860.8,2.59012417]
[1760682882856,0.1288,3860.8,3860.3,0.001]
[1760682883021,4.82346,3860.7,3860.3,0.001]
[1760682883222,3.1743,3860.7,3860.3,0.001]
[1760682883417,0.1288,3860.5,3860.3,0.001]
[1760682884062,0.1288,3861.1,3860.4,2.71917793]
[1760682884262,0.1288,3860.8,3860.3,0.001]
[1760682884649,0.1288,3860.8,3860.3,2.59146102]
[1760682884965,0.1288,3860.8,3860.4,2.59038637]
[1760682885137,0.4503,3860.7,3860.3,0.001]
[1760682885653,0.1288,3860.8,3860.3,0.001]
[1760682885873,0.1288,3860.8,3860.4,2.59040513]
[1760682886024,0.1288,3860.8,3860.3,0.001]
[1760682886230,0.4063419,3861.1,3860.3,0.001]
[1760682886428,0.1288,3860.4,3860.3,0.001]
[1760682887735,0.1288,3860.4,3860.3,2.59147224]
[1760682887944,0.4063419,3861.1,3860.4,2.59040513]
[1760682887945,2.722,3860.5,3860.4,2.59040513]
[1760682888460,0.1288,3860.8,3860.3,2.85061946]
[1760682888661,0.1288,3861.5,3860.7,0.1288]
[1760682888832,0.1288,3861.5,3861.4,2.58973429]
[1760682889035,0.1288,3861.5,3861.0,0.1288]
[1760682889261,0.4503,3861.4,3861.0,0.1288]
[1760682889463,0.1288,3861.5,3861.0,2.71878252]
[1760682889657,0.1288,3861.5,3861.1,2.58993551]
[1760682889849,0.1288,3861.5,3861.2,2.58986754]
[1760682890046,0.1288,3861.5,3861.0,0.1288]
[1760682890249,0.1288,3861.5,3861.1,2.58993302]
[1760682890662,0.4503,3861.4,3861.0,0.1288]
[1760682890838,0.1288,3861.3,3860.9,2.5900081]
[1760682891035,0.1288,3861.3,3860.7,0.1288]
[1760682891246,0.1288,3861.3,3860.7,2.71899579]
[1760682891434,0.1288,3861.3,3860.7,0.40069958]
[1760682891769,0.4543,3861.5,3860.6,2.59026643]
[1760682891966,0.9805,3861.6,3860.9,2.59002942]
[1760682892170,0.9805,3861.6,3861.5,2.58966722]
[1760682892171,0.76,3861.6,3861.5,2.58966722]
[1760682892354,0.2373,3861.9,3861.4,2.58972215]
[1760682892541,0.2373,3861.9,3861.7,2.58951577]
[1760682892745,0.2373,3861.9,3861.8,2.58946605]
[1760682893270,0.40622855,3862.2,3862.0,2.58933195]
[1760682893470,2.144,3862.3,3862.0,2.58933195]
[1760682894455,0.002,3862.4,3862.0,2.58933195]
[1760682895355,0.002,3862.4,3862.0,2.61297904]
[1760682895549,0.002,3862.4,3862.0,2.58933195]
[1760682895948,0.002,3862.4,3861.8,0.51790603]
[1760682896150,0.002,3862.4,3860.7,2.60704312]
[1760682896471,0.002,3862.4,3862.0,2.58933195]
[1760682896676,0.002,3862.4,3861.0,2.59000259]
[1760682896893,0.002,3862.4,3860.9,0.01697891]
[1760682896894,0.002,3862.4,3860.9,2.59000335]
[1760682897097,0.002,3862.4,3861.1,2.58992026]
[1760682897297,0.002,3862.4,3861.9,2.58939331]
[1760682897496,0.002,3862.4,3861.2,0.25899203]
[1760682897694,0.4563,3862.4,3860.7,2.717]
[1760682897896,0.4543,3862.0,3860.4,2.59040513]
[1760682898105,0.2373,3861.9,3860.3,2.718]
[1760682898285,0.2373,3861.9,3861.0,2.58994282]
[1760682898488,0.4543,3861.8,3860.3,0.001]
[1760682898997,2.394,3861.7,3860.3,0.001]
[1760682899367,0.4543,3861.6,3860.3,0.001]
[1760682899570,0.4543,3861.6,3860.8,2.59008883]
[1760682899776,0.2373,3860.9,3860.3,0.001]
[1760682900190,0.4543,3860.8,3860.3,0.001]
[1760682900403,2.717,3860.7,3860.3,0.001]
[1760682900602,3.1713,3860.7,3860.6,0.001]
[1760682901269,2.59027225,3860.6,3860.3,0.001]
[1760682901488,3.1713,3860.7,3859.9,0.001]
[1760682901489,11.99319507,3860.5,3859.9,0.001]
[1760682901807,0.1288,3859.1,3856.8,2.59282306]
[1760682901967,0.4543,3860.5,3858.1,0.1288]
[1760682901968,3.4096,3859.0,3858.1,0.1288]
[1760682902177,0.1288,3858.7,3858.1,0.1288]
[1760682902422,0.117,3858.9,3855.8,0.352]
[1760682902423,7.509469,3858.5,3855.8,0.352]
[1760682902711,12.255241,3858.3,3856.5,2.59299924]
[1760682902924,0.40669479,3858.1,3856.6,2.59295191]
[1760682903209,0.40669479,3858.1,3855.8,0.003]
[1760682903210,2.718,3858.0,3856.8,0.25959519]
[1760682903371,0.2271,3857.9,3857.0,2.59266291]
[1760682903570,0.2271,3857.9,3857.0,2.59267994]
[1760682903969,0.2271,3857.9,3856.8,2.8523878]
[1760682904171,0.2271,3856.9,3856.7,0.003]
[1760682904607,0.4497,3856.8,3856.7,0.003]
[1760682904910,0.4497,3856.8,3856.1,2.5464876]
[1760682905205,0.4497,3856.7,3856.1,2.5464876]
[1760682905371,0.2271,3856.9,3856.1,2.80143636]
[1760682905574,0.40680009,3856.7,3856.4,2.5930699]
[1760682905774,0.40680009,3856.7,3856.5,2.59299867]
[1760682906095,0.6768,3857.9,3857.3,2.59243084]
[1760682906298,0.2373,3859.0,3856.7,14.00520348]
[1760682906620,0.2373,3859.0,3857.4,2.59241209]
[1760682906903,1.23956799,3859.2,3859.0,2.59134034]
[1760682907106,0.4497,3860.3,3858.9,2.59138768]
[1760682907296,2.721,3860.1,3859.8,2.59080576]
[1760682907493,2.721,3860.1,3858.2,0.02591882]
[1760682907806,2.721,3860.1,3859.7,2.59083087]
[1760682908125,2.721,3860.1,3858.9,2.59139092]
[1760682908126,0.2271,3859.8,3858.9,2.59139092]
[1760682908310,0.2271,3859.8,3858.3,2.59181504]
[1760682908672,0.2271,3859.8,3857.9,0.02592083]
[1760682908902,0.2271,3859.8,3857.9,1.728]
[1760682909176,0.2271,3859.8,3858.7,2.59152455]
[1760682909521,0.4497,3859.7,3858.5,2.5916627]
[1760682909701,0.4497,3859.7,3858.1,2.5919494]
[1760682909702,0.2271,3858.8,3858.1,2.5919494]
[1760682909873,0.2271,3859.8,3857.4,2.72]
[1760682909874,2.72,3859.1,3858.7,2.59154637]
[1760682910082,2.72,3859.1,3857.4,2.72]
[1760682910083,2.72,3859.1,3859.0,2.5913449]
[1760682910270,0.4497,3860.4,3859.0,3.11221627]
[1760682910497,0.2271,3859.9,3859.2,2.59118092]
[1760682910812,0.2271,3859.9,3859.3,2.59110776]
[1760682911016,0.2271,3859.9,3858.4,2.59169136]
[1760682911219,0.2271,3859.9,3857.3,2.59246396]
[1760682911220,3.917869,3859.8,3857.2,13.97927458]
[1760682911515,4.800031,3859.6,3857.3,2.72]
[1760682911673,0.40652991,3859.2,3857.4,1.92918931]
[1760682911894,3.1697,3859.1,3857.8,2.59213702]
[1760682912099,3.1697,3859.1,3857.9,2.59207505]
[1760682912302,3.1697,3859.1,3856.8,1.40052035]
[1760682912303,0.2271,3858.0,3856.8,1.40052035]
[1760682912503,0.1296,3857.9,3857.3,2.59245903]
[1760682912706,0.1296,3857.9,3857.3,2.59248697]
[1760682912907,0.4066396,3858.2,3857.7,0.1296]
[1760682913117,0.4066396,3858.2,3858.1,2.5919494]
[1760682913329,0.1288,3858.6,3857.9,2.72165305]
[1760682913330,0.1288,3858.6,3857.9,0.1296]
[1760682913626,0.2271,3858.8,3857.0,1.728]
[1760682913830,0.2271,3858.8,3857.8,2.5920969]
[1760682914028,0.2271,3858.8,3857.6,2.59228282]
[1760682914329,0.4497,3858.7,3857.1,1.57072746]
[1760682914504,0.4497,3858.7,3856.7,4.32089029]
[1760682914828,0.4497,3858.7,3856.6,2.719]
[1760682914829,0.4497,3859.3,3856.9,13.97927458]
[1760682915028,0.4066057,3858.8,3858.3,2.5918059]
[1760682915340,0.4066057,3858.8,3857.4,13.97927458]
[1760682915341,0.4066057,3858.8,3858.4,2.59174228]
[1760682915666,0.4066057,3858.8,3858.7,2.59154637]
[1760682916009,2.677,3859.2,3859.1,2.59127775]
[1760682916643,2.677,3859.2,3858.7,0.51831933]
[1760682916853,2.677,3859.2,3858.9,2.59135044]
[1760682916998,0.40650719,3859.7,3858.1,2.719]
[1760682916999,0.40650719,3859.7,3858.3,2.59181504]
[1760682917198,0.40650719,3859.7,3858.1,2.719]
[1760682917550,0.40650719,3859.7,3858.2,16.59707562]
[1760682917842,0.4497,3860.6,3858.7,16.57076962]
[1760682918014,0.4497,3860.6,3859.9,2.59071562]
[1760682918197,2.719,3860.7,3860.0,0.02590673]
[1760682918403,2.719,3860.7,3860.1,2.59055404]
[1760682918737,2.719,3860.7,3858.9,2.59141206]
[1760682919037,2.719,3860.7,3860.1,2.59059264]
[1760682919213,2.719,3860.7,3860.2,0.02590539]
[1760682919444,2.719,3860.7,3860.6,2.59027094]
[1760682919601,2.719,3860.7,3859.3,2.718]
[1760682919802,2.719,3860.7,3859.4,1.66972746]
[1760682920040,3.1687,3860.7,3859.4,1.66972746]
[1760682920337,0.2271,3861.2,3860.6,2.59021887]
[1760682920658,0.2271,3861.5,3861.1,2.58987263]
[1760682920929,0.844,3861.8,3860.0,2.59067357]
[1760682921106,0.2271,3862.0,3861.3,2.58979553]
[1760682921309,0.2271,3862.0,3859.7,2.718]
[1760682921620,1.018,3861.9,3860.3,2.59046252]
[1760682921822,2.601343,3861.6,3860.3,2.59045765]
[1760682922028,0.44,3861.5,3860.3,2.59045765]
[1760682922229,0.44,3861.5,3860.5,2.5903078]
[1760682922540,0.40632407,3861.6,3859.9,13.97927458]
[1760682922846,0.84632407,3861.6,3860.0,1.39792746]
[1760682923004,0.84632407,3861.6,3860.6,2.59026629]
[1760682923206,0.84632407,3861.6,3859.8,2.59078683]
[1760682923207,0.2232,3860.7,3859.9,2.59068099]
[1760682923441,0.04515,3860.0,3858.4,13.97927458]
[1760682923600,0.04515,3860.0,3859.8,0.1288]
[1760682923808,0.352,3859.9,3859.2,0.1288]
[1760682924005,0.352,3859.9,3859.5,2.59098906]
[1760682924206,0.352,3859.9,3859.2,0.1288]
[1760682924207,0.1288,3859.9,3859.2,0.1288]
[1760682924511,0.04515,3860.0,3859.9,2.59074069]
[1760682924843,0.04515,3860.0,3859.8,0.1288]
[1760682925001,0.04515,3860.0,3857.1,13.97927458]
[1760682925002,6.37294,3859.8,3857.1,13.97927458]
[1760682925339,3.3832,3859.9,3857.1,2.721]
[1760682925340,2.080258,3859.6,3857.1,2.721]
[1760682925640,3.923824,3859.4,3857.2,0.2721]
[1760682925843,0.44,3859.3,3857.2,0.2721]
[1760682926038,9.605893,3858.9,3857.2,2.86465155]
[1760682926238,0.40659437,3859.0,3856.6,0.001]
[1760682926239,3.3842,3858.8,3856.6,0.001]
[1760682926409,3.3842,3858.8,3857.6,2.59227934]
[1760682927141,9.578273,3858.6,3856.6,0.001]
[1760682927343,12.316987,3858.5,3856.8,2.59282306]
[1760682927642,12.316987,3858.5,3856.6,0.001]
[1760682927643,5.050601,3858.2,3856.6,0.001]
[1760682927803,0.2232,3856.9,3856.6,0.001]
[1760682928001,2.721,3856.8,3856.6,0.001]
[1760682928209,3.161,3856.8,3856.6,0.001]
[1760682928435,2.677672,3856.6,3856.3,0.001]
[1760682928642,2.135018,3856.6,3856.3,0.001]
[1760682928842,0.44,3856.5,3856.3,0.001]
[1760682929051,5.488152,3856.4,3856.3,0.001]
[1760682929549,9.972028,3856.4,3856.3,0.001]
[1760682929908,15.178112,3856.4,3856.3,0.001]
[1760682930110,29.307776,3856.4,3856.3,0.001]
[1760682930304,29.307776,3856.4,3853.3,2.6119146]
[1760682930305,3.22702825,3855.9,3855.8,0.002]
[1760682930509,3.22702825,3855.9,3853.3,2.6119146]
[1760682930510,27.83932886,3855.3,3853.3,2.6119146]
[1760682930753,3.985813,3855.0,3853.4,0.0259511]
[1760682930958,2.727,3854.9,3853.3,2.87370606]
[1760682931154,0.2232,3855.4,3853.4,0.0259511]
[1760682931340,0.948,3855.3,3853.3,2.87370606]
[1760682931731,0.948,3855.3,3853.4,12.77015664]
[1760682931931,0.948,3855.3,3855.0,2.59401903]
[1760682932268,0.948,3855.3,3854.5,2.5943691]
[1760682932453,0.948,3855.3,3854.5,2.59430527]
[1760682932655,0.2232,3855.7,3853.4,1.728]
[1760682932951,2.727,3855.3,3853.5,2.59498636]
[1760682933153,2.727,3855.3,3853.6,2.2667898]
[1760682933379,2.727,3855.3,3853.3,2.87370606]
[1760682933743,2.727,3855.3,3853.4,0.0259511]
[1760682934069,2.9522,3855.9,3853.4,0.6595511]
[1760682934277,0.40695396,3855.8,3855.7,2.59356277]
[1760682934537,0.6632,3856.9,3855.0,2.59403372]
[1760682934682,1.6342,3856.9,3856.5,2.59302442]
[1760682934978,0.971,3856.9,3856.8,2.59282306]
[1760682935152,1.1942,3856.9,3855.4,2.59376458]
[1760682935354,0.971,3856.9,3855.4,2.729]
[1760682935681,1.1942,3856.9,3856.3,2.59309433]
[1760682935846,1.1942,3856.9,3856.4,0.001]
[1760682936050,1.1942,3856.9,3856.4,2.59406861]
[1760682936248,1.1942,3856.9,3856.5,2.59296004]
[1760682936546,0.44,3856.8,3856.4,0.001]
[1760682937001,0.971,3856.9,3856.4,0.001]
[1760682937284,0.971,3856.9,3856.8,2.59282306]
[1760682937483,2.01483029,3857.5,3856.9,2.59275171]
[1760682937484,0.44,3857.5,3856.9,2.59275171]
[1760682937644,0.44,3857.5,3856.4,2.59408012]
[1760682937850,11.547267,3857.4,3856.4,0.001]
[1760682938067,12.525941,3857.6,3856.4,0.001]
[1760682938289,5.0,3857.2,3856.4,0.001]
[1760682938777,2.728,3857.8,3856.4,0.001]
[1760682938778,0.2232,3856.5,3856.4,0.001]
[1760682938998,2.9522,3856.5,3856.4,0.001]
[1760682939206,3.3922,3856.5,3856.4,0.001]
[1760682939368,6.297943,3856.4,3856.0,0.001]
[1760682939709,6.297943,3856.4,3853.9,2.287]
[1760682939710,2.78731,3856.4,3855.0,2.59402707]
[1760682940002,6.214581,3856.2,3854.9,2.59409386]
[1760682940173,2.255437,3856.2,3854.9,2.59409386]
[1760682940490,0.44,3856.1,3854.9,2.59409386]
[1760682940687,2.091981,3856.0,3854.1,2.59458088]
[1760682940893,0.2232,3855.9,3854.9,2.59408292]
[1760682941090,2.9522,3856.5,3855.7,2.59351697]
[1760682941293,2.9522,3856.5,3854.3,1.75394504]
[1760682941475,2.9522,3856.5,3856.1,2.59329268]
[1760682941674,2.9522,3856.5,3854.6,2.728]
[1760682941869,0.44,3856.4,3854.8,2.5941683]
[1760682942105,0.44,3856.4,3854.9,2.59410101]
[1760682942285,0.44,3856.3,3855.2,2.59384435]
[1760682942493,0.44,3856.3,3855.3,2.59382445]
[1760682942800,0.44,3856.2,3854.7,0.53224375]
[1760682942969,0.4068697,3856.1,3854.2,0.25945809]
[1760682943170,0.4068697,3856.1,3854.5,2.59434336]
[1760682943385,0.44,3856.0,3854.9,2.59407694]
[1760682943585,0.2232,3855.9,3853.7,2.59490878]
[1760682943922,0.2232,3855.9,3855.1,2.59396616]
[1760682944105,0.40691375,3855.8,3854.7,2.59417105]
[1760682944308,0.40691375,3855.8,3853.9,2.59477412]
[1760682944609,0.40691375,3855.8,3854.0,0.25947741]
[1760682944804,0.40691375,3855.8,3853.5,5.32300115]
[1760682945034,0.1296,3855.1,3854.4,0.1296]
[1760682945202,0.2232,3854.5,3853.3,2.6119146]
[1760682945520,1.115,3854.4,3853.6,2.59493271]
[1760682945693,1.115,3854.4,3853.7,2.59489724]
[1760682945888,1.115,3854.4,3853.3,2.6119146]
[1760682946292,3.293289,3854.3,3853.3,2.6119146]
[1760682946508,0.44,3854.2,3853.3,2.6119146]